[Event "LM 2019"]
[Site "Linköping, Sweden"]
[Date "2019.01.22"]
[Round "2.1"]
[White "Janse, Love"]
[Black "Arvidsson, Erik"]
[Result "1-0"]
[TimeControl "90 min + 30 sec/move"]
[WhiteElo "2187"]
[BlackElo "1903"]

1. e4 {[%clk 01:25:36]} c5 {[%clk 01:26:07]} 2. Nc3 {[%clk 01:25:36]} e5 {[%clk
01:26:07]} 3. Bc4 {[%clk 01:25:36]} Nf6 {[%clk 01:26:07]} 4. d3 {[%clk
01:25:36]} Nc6 {[%clk 01:26:07]} 5. Nge2 {[%clk 01:25:36]} d6 {[%clk 01:26:07]}
6. O-O {[%clk 01:25:36]} a6 {[%clk 01:26:07]} 7. f4 {[%clk 01:25:36]} b5 {[%clk
01:26:07]} 8. Bb3 {[%clk 01:25:36]} Qb6 {[%clk 01:26:07]} 9. Nd5 {[%clk
01:25:36]} Nxd5 {[%clk 01:26:07]} 10. Bxd5 {[%clk 01:25:36]} Ra7 {[%clk
01:26:07]} 11. Be3 {[%clk 01:25:36]} g6 {[%clk 01:26:07]} 12. fxe5 {[%clk
01:25:36]} dxe5 {[%clk 01:26:07]} 13. Rf6 {[%clk 01:25:36]} Be6 {[%clk
01:26:07]} 14. Bxe6 {[%clk 01:25:36]} fxe6 {[%clk 01:26:07]} 15. Qf1 {[%clk
01:25:36]} Nd4 {[%clk 01:26:07]} 16. Bxd4 {[%clk 01:25:36]} cxd4 {[%clk
01:26:07]} 17. Qf2 {[%clk 01:25:36]} Bg7 {[%clk 01:26:07]} 18. Rf1 {[%clk
01:25:36]} Bxf6 {[%clk 01:26:07]} 19. Qxf6 {[%clk 01:25:36]} Rg8 {[%clk
01:26:07]} 20. Qxe5 {[%clk 01:25:36]} Rf7 {[%clk 01:26:07]} 21. Nxd4 {[%clk
01:25:36]} Rgf8 {[%clk 01:26:07]} 22. Rxf7 {[%clk 01:25:36]} Kxf7 {[%clk
01:26:07]} 23. Kf1 {[%clk 01:25:36]} Ke7+ {[%clk 01:26:07]} 24. Ke2 {[%clk
01:25:36]} Rf6 {[%clk 01:26:07]} 25. b4 {[%clk 01:25:36]} Qd6 {[%clk 01:26:07]}
26. Qc5 {[%clk 01:25:36]} Qxc5 {[%clk 01:26:07]} 27. bxc5 {[%clk 01:25:36]} e5
{[%clk 01:26:07]} 28. Nb3 {[%clk 01:25:36]} b4 {[%clk 01:26:07]} 29. Na5 {[%clk
01:25:36]} Kd7 {[%clk 01:26:07]} 30. Nc4 {[%clk 01:25:36]} Re6 {[%clk
01:26:07]} 31. Ke3 {[%clk 01:25:36]} Kc6 {[%clk 01:26:07]} 32. d4 {[%clk
01:25:36]} exd4+ {[%clk 01:26:07]} 33. Kxd4 {[%clk 01:25:36]} Rf6 {[%clk
01:26:07]} 34. Ne5+ {[%clk 01:25:36]} Kb5 {[%clk 01:26:07]} 35. Nd3 {[%clk
01:25:36]} Rf1 {[%clk 01:26:07]} 36. Kd5 {[%clk 01:25:36]} a5 {[%clk 01:26:07]}
37. e5 {[%clk 01:25:36]} Rf5 {[%clk 01:26:07]} 38. g4 {[%clk 01:25:36]} Rf8
{[%clk 01:26:07]} 39. Kd6 {[%clk 01:25:36]} Rd8+ {[%clk 01:26:07]} 40. Kc7
{[%clk 01:25:36]} Re8 {[%clk 01:26:07]} 41. Kd7 {[%clk 01:25:36]} Ra8 {[%clk
01:26:07]} 42. e6 {[%clk 01:25:36]} Ra7+ {[%clk 01:26:07]} 43. Kd6 {[%clk
01:25:36]} Ra6+ {[%clk 01:26:07]} 44. Kd5 {[%clk 01:25:36]} Ra7 {[%clk
01:26:07]} 45. Ne5 {[%clk 01:25:36]} a4 {[%clk 01:26:07]} 46. Nc6 {[%clk
01:25:36]} Rc7 {[%clk 01:26:07]} 47. e7 {[%clk 01:25:36]} Rd7 {[%clk 01:26:07]}
48. Ke6 {[%clk 01:25:36]} Rxe7+ {[%clk 01:26:07]} 49. Nxe7 {[%clk 01:25:36]}
Kxc5 {[%clk 01:26:07]} 50. Ke5 {[%clk 01:25:36]} Kc4 {[%clk 01:26:07]} 51. Nd5
{[%clk 01:25:36]} h5 {[%clk 01:26:07]} 52. g5 {[%clk 01:25:36]} Kc5 {[%clk
01:26:07]} 53. Ne3 {[%clk 01:25:36]} 1-0

[Event "LM 2019"]
[Site "Linköping, Sweden"]
[Date "2019.01.22"]
[Round "2.2"]
[White "Wahlund, Max"]
[Black "Pettersson, Börje"]
[Result "0-1"]
[TimeControl "90 min + 30 sec/move"]
[WhiteTitle "CM"]
[WhiteElo "2151"]
[BlackElo "1895"]

1. e4 {[%clk 01:30:56]} {[%emt 00:00:02]} c5 {[%clk 01:30:36]} {[%emt
00:00:25]} 2. Nc3 {[%clk 01:30:50]} {[%emt 00:00:37]} d6 {[%clk 01:30:30]}
{[%emt 00:00:36]} 3. f4 {[%clk 01:31:14]} {[%emt 00:00:05]} a6 {[%clk
01:29:45]} {[%emt 00:01:15]} 4. a4 {[%clk 01:29:42]} {[%emt 00:02:03]} Nc6
{[%clk 01:27:09]} {[%emt 00:03:05]} 5. Bc4 {[%clk 01:28:57]} {[%emt 00:01:15]}
Nf6 {[%clk 01:23:02]} {[%emt 00:04:37]} 6. d3 {[%clk 01:27:23]} {[%emt
00:02:04]} e6 {[%clk 01:13:28]} {[%emt 00:10:03]} 7. Ba2 {[%clk 01:19:54]}
{[%emt 00:07:59]} Be7 {[%clk 01:12:02]} {[%emt 00:01:57]} 8. Nf3 {[%clk
01:20:10]} {[%emt 00:00:15]} O-O {[%clk 01:11:36]} {[%emt 00:00:55]} 9. O-O
{[%clk 01:20:05]} {[%emt 00:00:35]} Qc7 {[%clk 01:03:06]} {[%emt 00:08:59]} 10.
Kh1 {[%clk 00:57:53]} {[%emt 00:22:42]} Rb8 {[%clk 00:58:41]} {[%emt 00:04:55]}
11. g4 {[%clk 00:52:15]} {[%emt 00:06:08]} b5 {[%clk 00:46:48]} {[%emt
00:12:23]} 12. g5 {[%clk 00:51:43]} {[%emt 00:01:01]} Nd7 {[%clk 00:46:35]}
{[%emt 00:00:43]} 13. Nh4 {[%clk 00:37:10]} {[%emt 00:15:03]} Nb4 {[%clk
00:40:47]} {[%emt 00:06:19]} 14. Bb1 {[%clk 00:29:27]} {[%emt 00:08:13]} f5
{[%clk 00:30:48]} {[%emt 00:10:29]} 15. Qh5 {[%clk 00:25:10]} {[%emt 00:04:47]}
d5 {[%clk 00:27:22]} {[%emt 00:03:56]} 16. axb5 {[%clk 00:21:46]} {[%emt
00:03:54]} axb5 {[%clk 00:26:46]} {[%emt 00:01:06]} 17. Bd2 {[%clk 00:20:05]}
{[%emt 00:02:12]} dxe4 {[%clk 00:24:32]} {[%emt 00:02:44]} 18. dxe4 {[%clk
00:19:23]} {[%emt 00:01:11]} Bb7 {[%clk 00:23:12]} {[%emt 00:01:50]} 19. Kg1
{[%clk 00:13:22]} {[%emt 00:06:31]} c4 {[%clk 00:21:09]} {[%emt 00:02:33]} 20.
Be3 {[%clk 00:08:38]} {[%emt 00:05:13]} Bc5 {[%clk 00:20:00]} {[%emt 00:01:38]}
21. Qe2 {[%clk 00:08:03]} {[%emt 00:01:05]} Qc6 {[%clk 00:16:57]} {[%emt
00:03:33]} 22. Ra5 {[%clk 00:06:03]} {[%emt 00:02:31]} Ba8 {[%clk 00:10:51]}
{[%emt 00:06:35]} 23. Nf3 {[%clk 00:03:43]} {[%emt 00:02:50]} Qb6 {[%clk
00:09:11]} {[%emt 00:02:10]} 24. Rxb5 {[%clk 00:01:03]} {[%emt 00:03:10]} Bxe3+
{[%clk 00:09:24]} {[%emt 00:00:17]} 25. Kg2 {[%clk 00:01:32]} {[%emt 00:00:01]}
Qa7 {[%clk 00:08:35]} {[%emt 00:01:19]} 26. Qxc4 {[%clk 00:01:44]} {[%emt
00:00:18]} fxe4 {[%clk 00:03:09]} {[%emt 00:05:55]} 27. Qxe6+ {[%clk 00:01:05]}
{[%emt 00:01:10]} Kh8 {[%clk 00:03:23]} {[%emt 00:00:16]} 28. Rxb8 {[%clk
00:01:00]} {[%emt 00:00:36]} exf3+ {[%clk 00:03:39]} {[%emt 00:00:14]} 29. Kh3
{[%clk 00:01:10]} {[%emt 00:00:20]} Rxb8 {[%clk 00:03:02]} {[%emt 00:01:07]} 30.
Nb5 {[%clk 00:01:01]} {[%emt 00:00:39]} Nf8 {[%clk 00:01:10]} {[%emt 00:02:22]}
31. Qf5 {[%clk 00:00:39]} {[%emt 00:00:52]} Qd7 {[%clk 00:00:55]} {[%emt
00:00:45]} 32. c4 {[%clk 00:01:08]} {[%emt 00:00:01]} Qxf5+ {[%clk 00:01:03]}
{[%emt 00:00:22]} 33. Bxf5 {[%clk 00:01:36]} {[%emt 00:00:02]} f2 {[%clk
00:00:50]} {[%emt 00:00:43]} 34. Kg3 {[%clk 00:01:47]} {[%emt 00:00:19]} Ng6
{[%clk 00:00:35]} {[%emt 00:00:45]} 35. Nd6 {[%clk 00:01:47]} {[%emt 00:00:30]}
Bxf4+ {[%clk 00:00:45]} {[%emt 00:00:20]} 36. Kxf2 {[%clk 00:02:13]} {[%emt
00:00:04]} Bxd6 {[%clk 00:01:05]} {[%emt 00:00:10]} 37. h4 {[%clk 00:02:30]}
{[%emt 00:00:13]} Nxh4 {[%clk 00:01:05]} {[%emt 00:00:30]} 0-1

[Event "LM 2019"]
[Site "Linköping, Sweden"]
[Date "2019.01.22"]
[Round "2.3"]
[White "Grundel, Sam"]
[Black "Stefanovic, Dragan"]
[Result "1-0"]
[TimeControl "90 min + 30 sec/move"]
[WhiteElo "2034"]
[BlackElo "1812"]

1. e4 {[%clk 01:30:57]} {[%emt 00:00:02]} e5 {[%clk 01:30:52]} {[%emt
00:00:09]} 2. Nf3 {[%clk 01:30:46]} {[%emt 00:00:41]} Nc6 {[%clk 01:31:15]}
{[%emt 00:00:07]} 3. Bc4 {[%clk 01:31:05]} {[%emt 00:00:11]} Bc5 {[%clk
01:31:31]} {[%emt 00:00:14]} 4. c3 {[%clk 01:31:24]} {[%emt 00:00:10]} Nf6
{[%clk 01:31:41]} {[%emt 00:00:19]} 5. d3 {[%clk 01:31:45]} {[%emt 00:00:09]}
h6 {[%clk 01:29:23]} {[%emt 00:02:48]} 6. O-O {[%clk 01:31:32]} {[%emt
00:00:43]} d6 {[%clk 01:29:33]} {[%emt 00:00:21]} 7. Re1 {[%clk 01:31:47]}
{[%emt 00:00:15]} O-O {[%clk 01:29:44]} {[%emt 00:00:19]} 8. h3 {[%clk
01:30:25]} {[%emt 00:01:51]} a6 {[%clk 01:28:26]} {[%emt 00:01:49]} 9. Bb3
{[%clk 01:30:19]} {[%emt 00:00:35]} Ba7 {[%clk 01:28:24]} {[%emt 00:00:32]} 10.
Nbd2 {[%clk 01:30:33]} {[%emt 00:00:16]} Re8 {[%clk 01:28:28]} {[%emt
00:00:26]} 11. Nf1 {[%clk 01:30:20]} {[%emt 00:00:41]} Be6 {[%clk 01:28:18]}
{[%emt 00:00:43]} 12. Bc2 {[%clk 01:30:33]} {[%emt 00:00:17]} Qd7 {[%clk
01:27:34]} {[%emt 00:01:14]} 13. Ng3 {[%clk 01:30:07]} {[%emt 00:00:56]} d5
{[%clk 01:13:27]} {[%emt 00:14:38]} 14. exd5 {[%clk 01:24:32]} {[%emt
00:06:05]} Qxd5 {[%clk 01:10:54]} {[%emt 00:03:01]} 15. Qe2 {[%clk 01:08:27]}
{[%emt 00:16:36]} Rad8 {[%clk 01:05:25]} {[%emt 00:06:00]} 16. b4 {[%clk
00:56:12]} {[%emt 00:12:46]} Bc8 {[%clk 01:01:00]} {[%emt 00:04:54]} 17. a4
{[%clk 00:48:32]} {[%emt 00:08:09]} b5 {[%clk 00:56:54]} {[%emt 00:04:37]} 18.
axb5 {[%clk 00:46:55]} {[%emt 00:02:07]} axb5 {[%clk 00:57:13]} {[%emt
00:00:10]} 19. Ne4 {[%clk 00:40:05]} {[%emt 00:07:20]} Qe6 {[%clk 00:36:10]}
{[%emt 00:21:34]} 20. Nxf6+ {[%clk 00:36:53]} {[%emt 00:03:42]} Qxf6 {[%clk
00:35:23]} {[%emt 00:01:17]} 21. d4 {[%clk 00:36:22]} {[%emt 00:01:01]} e4
{[%clk 00:31:21]} {[%emt 00:04:32]} 22. Bxe4 {[%clk 00:30:54]} {[%emt
00:05:58]} Bb6 {[%clk 00:26:47]} {[%emt 00:05:04]} 23. Qxb5 {[%clk 00:18:12]}
{[%emt 00:13:12]} Rxe4 {[%clk 00:14:52]} {[%emt 00:12:25]} 24. Rxe4 {[%clk
00:17:54]} {[%emt 00:00:48]} Qg6 {[%clk 00:15:15]} {[%emt 00:00:08]} 25. Qe2
{[%clk 00:15:15]} {[%emt 00:03:06]} Be6 {[%clk 00:08:07]} {[%emt 00:07:40]} 26.
Bd2 {[%clk 00:11:05]} {[%emt 00:04:40]} Bf5 {[%clk 00:02:17]} {[%emt 00:06:20]}
27. Re8+ {[%clk 00:07:34]} {[%emt 00:04:01]} Rxe8 {[%clk 00:01:18]} {[%emt
00:01:30]} 28. Qxe8+ {[%clk 00:07:56]} {[%emt 00:00:08]} Kh7 {[%clk 00:01:45]}
{[%emt 00:00:02]} 29. Nh4 {[%clk 00:08:02]} {[%emt 00:00:24]} 1-0

[Event "LM 2019"]
[Site "Linköping, Sweden"]
[Date "2019.01.22"]
[Round "2.4"]
[White "Nguyen, Gabriel"]
[Black "Eriksson, Ofelia"]
[Result "1-0"]
[TimeControl "90 min + 30 sec/move"]
[WhiteElo "2034"]
[BlackElo "1773"]

1. d4 {[%clk 01:30:25]} {[%emt 00:00:35]} Nf6 {[%clk 01:30:56]} {[%emt
00:00:05]} 2. c4 {[%clk 01:29:25]} {[%emt 00:01:29]} c5 {[%clk 01:31:23]}
{[%emt 00:00:03]} 3. d5 {[%clk 01:29:38]} {[%emt 00:00:17]} b5 {[%clk
01:31:48]} {[%emt 00:00:05]} 4. cxb5 {[%clk 01:30:05]} {[%emt 00:00:03]} a6
{[%clk 01:32:14]} {[%emt 00:00:04]} 5. bxa6 {[%clk 01:29:48]} {[%emt 00:00:47]}
Bxa6 {[%clk 01:32:39]} {[%emt 00:00:05]} 6. Nc3 {[%clk 01:30:13]} {[%emt
00:00:05]} g6 {[%clk 01:32:45]} {[%emt 00:00:24]} 7. e4 {[%clk 01:30:37]}
{[%emt 00:00:06]} Bxf1 {[%clk 01:33:10]} {[%emt 00:00:05]} 8. Kxf1 {[%clk
01:31:01]} {[%emt 00:00:05]} d6 {[%clk 01:33:34]} {[%emt 00:00:07]} 9. g3
{[%clk 01:31:26]} {[%emt 00:00:05]} Bg7 {[%clk 01:33:31]} {[%emt 00:00:34]} 10.
Kg2 {[%clk 01:31:49]} {[%emt 00:00:06]} O-O {[%clk 01:33:44]} {[%emt 00:00:17]}
11. Nf3 {[%clk 01:32:15]} {[%emt 00:00:05]} Nbd7 {[%clk 01:33:38]} {[%emt
00:00:36]} 12. a4 {[%clk 01:32:32]} {[%emt 00:00:12]} Ng4 {[%clk 01:31:57]}
{[%emt 00:02:12]} 13. Qe2 {[%clk 01:24:18]} {[%emt 00:08:44]} Qa5 {[%clk
01:29:09]} {[%emt 00:03:18]} 14. Nd2 {[%clk 01:15:48]} {[%emt 00:09:00]} Ngf6
{[%clk 01:23:58]} {[%emt 00:05:41]} 15. Nc4 {[%clk 01:06:13]} {[%emt 00:10:04]}
Qa6 {[%clk 01:22:25]} {[%emt 00:02:03]} 16. Nb5 {[%clk 01:00:19]} {[%emt
00:06:23]} Qb7 {[%clk 01:19:15]} {[%emt 00:03:40]} 17. Ra2 {[%clk 00:45:44]}
{[%emt 00:15:05]} Rfb8 {[%clk 01:17:27]} {[%emt 00:02:18]} 18. b3 {[%clk
00:43:42]} {[%emt 00:02:32]} Qc8 {[%clk 01:15:41]} {[%emt 00:02:16]} 19. Ra3
{[%clk 00:41:20]} {[%emt 00:02:52]} Ne8 {[%clk 01:10:28]} {[%emt 00:05:43]} 20.
Bb2 {[%clk 00:36:08]} {[%emt 00:05:41]} Nc7 {[%clk 01:08:42]} {[%emt 00:02:16]}
21. Nxc7 {[%clk 00:36:03]} {[%emt 00:00:35]} Qxc7 {[%clk 01:09:02]} {[%emt
00:00:10]} 22. Bxg7 {[%clk 00:36:30]} {[%emt 00:00:04]} Kxg7 {[%clk 01:09:28]}
{[%emt 00:00:04]} 23. a5 {[%clk 00:34:08]} {[%emt 00:02:51]} Rb4 {[%clk
01:06:13]} {[%emt 00:03:46]} 24. Qb2+ {[%clk 00:33:12]} {[%emt 00:01:26]} Kg8
{[%clk 01:04:33]} {[%emt 00:02:10]} 25. Qc3 {[%clk 00:33:28]} {[%emt 00:00:14]}
Ne5 {[%clk 01:01:26]} {[%emt 00:03:38]} 26. Rha1 {[%clk 00:26:41]} {[%emt
00:07:16]} Nxc4 {[%clk 00:59:27]} {[%emt 00:02:29]} 27. bxc4 {[%clk 00:27:06]}
{[%emt 00:00:04]} Ra6 {[%clk 00:59:10]} {[%emt 00:00:47]} 28. Ra4 {[%clk
00:26:42]} {[%emt 00:00:54]} Rxa4 {[%clk 00:57:57]} {[%emt 00:01:44]} 29. Rxa4
{[%clk 00:27:07]} {[%emt 00:00:04]} Qb7 {[%clk 00:57:12]} {[%emt 00:01:15]} 30.
h4 {[%clk 00:23:05]} {[%emt 00:04:32]} h5 {[%clk 00:54:40]} {[%emt 00:03:03]}
31. f3 {[%clk 00:22:39]} {[%emt 00:00:56]} f6 {[%clk 00:50:12]} {[%emt
00:04:58]} 32. Kf2 {[%clk 00:21:32]} {[%emt 00:01:36]} Kf7 {[%clk 00:48:37]}
{[%emt 00:02:06]} 33. Ke3 {[%clk 00:21:55]} {[%emt 00:00:06]} e6 {[%clk
00:47:59]} {[%emt 00:01:09]} 34. dxe6+ {[%clk 00:21:18]} {[%emt 00:01:07]} Kxe6
{[%clk 00:48:18]} {[%emt 00:00:11]} 35. Kf4 {[%clk 00:14:41]} {[%emt 00:07:07]}
Qc7 {[%clk 00:47:52]} {[%emt 00:00:56]} 36. Ke3 {[%clk 00:14:58]} {[%emt
00:00:12]} Qb7 {[%clk 00:45:16]} {[%emt 00:03:06]} 37. g4 {[%clk 00:14:57]}
{[%emt 00:00:31]} Qb1 {[%clk 00:44:34]} {[%emt 00:01:12]} 38. Ra1 {[%clk
00:14:17]} {[%emt 00:01:10]} Qb7 {[%clk 00:43:58]} {[%emt 00:01:07]} 39. g5
{[%clk 00:12:16]} {[%emt 00:02:31]} fxg5 {[%clk 00:43:15]} {[%emt 00:01:13]} 40.
hxg5 {[%clk 00:12:41]} {[%emt 00:00:04]} Qf7 {[%clk 00:43:15]} {[%emt
00:00:30]} 41. Rb1 {[%clk 00:11:19]} {[%emt 00:01:51]} Qe7 {[%clk 00:42:20]}
{[%emt 00:01:25]} 42. f4 {[%clk 00:11:38]} {[%emt 00:00:11]} Qd8 {[%clk
00:41:42]} {[%emt 00:01:09]} 43. f5+ {[%clk 00:06:38]} {[%emt 00:05:30]} gxf5
{[%clk 00:41:27]} {[%emt 00:00:45]} 44. exf5+ {[%clk 00:07:03]} {[%emt
00:00:06]} Kxf5 {[%clk 00:40:55]} {[%emt 00:01:01]} 45. Qd3+ {[%clk 00:01:52]}
{[%emt 00:05:40]} Ke6 {[%clk 00:36:59]} {[%emt 00:04:26]} 46. Qg6+ {[%clk
00:01:56]} {[%emt 00:00:26]} Kd7 {[%clk 00:37:14]} {[%emt 00:00:15]} 47. Qf5+
{[%clk 00:01:56]} {[%emt 00:00:30]} Kc7 {[%clk 00:37:10]} {[%emt 00:00:35]} 48.
Qf7+ {[%clk 00:02:13]} {[%emt 00:00:12]} Qd7 {[%clk 00:37:15]} {[%emt
00:00:25]} 49. Rb7+ {[%clk 00:02:37]} {[%emt 00:00:06]} 1-0

[Event "LM 2019"]
[Site "Linköping, Sweden"]
[Date "2019.01.22"]
[Round "2.5"]
[White "Barros, Guilherme"]
[Black "Nörager, Mattias"]
[Result "1/2-1/2"]
[TimeControl "90 min + 30 sec/move"]
[WhiteElo "1930"]
[BlackElo "1764"]

1. e4 {[%clk 01:30:57]} {[%emt 00:00:02]} e5 {[%clk 01:30:25]} {[%emt
00:00:36]} 2. Nf3 {[%clk 01:31:24]} {[%emt 00:00:03]} Nc6 {[%clk 01:30:47]}
{[%emt 00:00:07]} 3. Nc3 {[%clk 01:31:48]} {[%emt 00:00:06]} Bc5 {[%clk
01:30:34]} {[%emt 00:00:42]} 4. Nxe5 {[%clk 01:32:03]} {[%emt 00:00:16]} Nxe5
{[%clk 01:29:56]} {[%emt 00:01:08]} 5. d4 {[%clk 01:32:09]} {[%emt 00:00:23]}
Bxd4 {[%clk 01:28:16]} {[%emt 00:02:10]} 6. Qxd4 {[%clk 01:32:27]} {[%emt
00:00:13]} Qf6 {[%clk 01:28:38]} {[%emt 00:00:08]} 7. Be3 {[%clk 01:23:04]}
{[%emt 00:09:53]} Nc6 {[%clk 01:25:36]} {[%emt 00:03:32]} 8. Qd2 {[%clk
01:22:33]} {[%emt 00:01:01]} Nge7 {[%clk 01:24:01]} {[%emt 00:02:05]} 9. O-O-O
{[%clk 01:19:46]} {[%emt 00:03:17]} a6 {[%clk 01:21:17]} {[%emt 00:03:14]} 10.
Nd5 {[%clk 01:08:38]} {[%emt 00:11:38]} Qd6 {[%clk 01:18:48]} {[%emt 00:02:58]}
11. Bf4 {[%clk 00:57:06]} {[%emt 00:12:02]} Ne5 {[%clk 01:18:47]} {[%emt
00:00:31]} 12. Qe3 {[%clk 00:33:20]} {[%emt 00:24:16]} O-O {[%clk 01:16:20]}
{[%emt 00:02:57]} 13. Bg5 {[%clk 00:27:48]} {[%emt 00:06:03]} Nxd5 {[%clk
01:14:45]} {[%emt 00:02:05]} 14. Rxd5 {[%clk 00:27:40]} {[%emt 00:00:38]} Qe6
{[%clk 01:13:06]} {[%emt 00:02:09]} 15. f4 {[%clk 00:25:57]} {[%emt 00:02:14]}
f6 {[%clk 01:09:56]} {[%emt 00:03:39]} 16. Bh4 {[%clk 00:23:51]} {[%emt
00:02:36]} c6 {[%clk 01:09:06]} {[%emt 00:01:21]} 17. Rd4 {[%clk 00:21:31]}
{[%emt 00:02:50]} c5 {[%clk 00:56:19]} {[%emt 00:13:16]} 18. Rd5 {[%clk
00:20:56]} {[%emt 00:01:05]} Nf7 {[%clk 00:56:05]} {[%emt 00:00:43]} 19. Kb1
{[%clk 00:20:24]} {[%emt 00:01:03]} Re8 {[%clk 00:55:49]} {[%emt 00:00:46]} 20.
Qxc5 {[%emt 00:10:16]} d6 {[%clk 00:52:15]} {[%emt 00:04:02]} 21. Qf2 {[%clk
00:08:50]} {[%emt 00:02:19]} Qxe4 {[%clk 00:49:56]} {[%emt 00:02:50]} 22. Rd4
{[%clk 00:09:14]} {[%emt 00:00:06]} Qe3 {[%clk 00:47:17]} {[%emt 00:03:09]} 23.
Bc4 {[%clk 00:09:06]} {[%emt 00:00:39]} Qxf2 {[%clk 00:47:01]} {[%emt
00:00:46]} 24. Bxf2 {[%clk 00:09:31]} {[%emt 00:00:05]} Be6 {[%clk 00:47:04]}
{[%emt 00:00:26]} 25. Bd3 {[%clk 00:08:58]} {[%emt 00:01:03]} f5 {[%clk
00:45:01]} {[%emt 00:02:34]} 26. a4 {[%clk 00:07:58]} {[%emt 00:01:30]} d5
{[%clk 00:43:46]} {[%emt 00:01:44]} 27. Rb4 {[%clk 00:06:42]} {[%emt 00:01:47]}
1/2-1/2

[Event "LM 2019"]
[Site "Linköping, Sweden"]
[Date "2019.01.22"]
[Round "2.6"]
[White "Sahlström, Alex"]
[Black "Tonkin, Archie"]
[Result "1-0"]
[TimeControl "90 min + 30 sec/move"]
[WhiteElo "1660"]
[BlackElo "1476"]

1. d4 {[%clk 01:30:51]} {[%emt 00:00:09]} d5 {[%clk 01:30:55]} {[%emt
00:00:06]} 2. c4 {[%clk 01:31:11]} {[%emt 00:00:09]} e6 {[%clk 01:31:00]}
{[%emt 00:00:25]} 3. Nf3 {[%clk 01:31:10]} {[%emt 00:00:31]} Nf6 {[%clk
01:31:07]} {[%emt 00:00:22]} 4. g3 {[%clk 01:31:33]} {[%emt 00:00:07]} c6
{[%clk 01:30:39]} {[%emt 00:00:59]} 5. Bg2 {[%clk 01:31:06]} {[%emt 00:00:55]}
Bd6 {[%clk 01:30:08]} {[%emt 00:01:02]} 6. O-O {[%clk 01:31:06]} {[%emt
00:00:30]} Nbd7 {[%clk 01:30:07]} {[%emt 00:00:31]} 7. Nc3 {[%clk 01:31:17]}
{[%emt 00:00:20]} h6 {[%clk 01:29:11]} {[%emt 00:01:26]} 8. Nd2 {[%clk
01:31:21]} {[%emt 00:00:25]} Bc7 {[%clk 01:26:19]} {[%emt 00:03:23]} 9. e4
{[%clk 01:29:44]} {[%emt 00:02:06]} Nb6 {[%clk 01:25:30]} {[%emt 00:01:19]} 10.
e5 {[%clk 01:24:28]} {[%emt 00:05:46]} Ng8 {[%clk 01:23:17]} {[%emt 00:02:42]}
11. cxd5 {[%clk 01:12:24]} {[%emt 00:12:35]} exd5 {[%clk 01:23:05]} {[%emt
00:00:43]} 12. f4 {[%clk 01:08:51]} {[%emt 00:04:03]} g6 {[%clk 01:19:08]}
{[%emt 00:04:27]} 13. b3 {[%clk 01:01:31]} {[%emt 00:07:50]} Be6 {[%clk
01:16:31]} {[%emt 00:03:07]} 14. g4 {[%clk 00:59:14]} {[%emt 00:02:46]} Ne7
{[%clk 01:16:17]} {[%emt 00:00:46]} 15. Qf3 {[%clk 00:54:18]} {[%emt 00:05:25]}
Qd7 {[%clk 01:12:43]} {[%emt 00:04:05]} 16. h3 {[%clk 00:50:58]} {[%emt
00:03:49]} h5 {[%clk 01:12:50]} {[%emt 00:00:24]} 17. f5 {[%clk 00:44:39]}
{[%emt 00:06:49]} gxf5 {[%clk 01:10:39]} {[%emt 00:02:40]} 18. g5 {[%clk
00:42:18]} {[%emt 00:02:51]} h4 {[%clk 01:08:58]} {[%emt 00:02:11]} 19. a4
{[%clk 00:40:41]} {[%emt 00:02:07]} Ng6 {[%clk 01:07:00]} {[%emt 00:02:28]} 20.
a5 {[%clk 00:38:59]} {[%emt 00:02:12]} Nc8 {[%clk 01:07:18]} {[%emt 00:00:12]}
21. b4 {[%clk 00:38:18]} {[%emt 00:01:11]} Bd8 {[%clk 01:05:50]} {[%emt
00:01:57]} 22. Nb3 {[%clk 00:37:12]} {[%emt 00:01:35]} Be7 {[%clk 01:03:12]}
{[%emt 00:03:09]} 23. b5 {[%clk 00:29:34]} {[%emt 00:08:09]} a6 {[%clk
00:57:08]} {[%emt 00:06:34]} 24. b6 {[%clk 00:24:39]} {[%emt 00:05:25]} Qd8
{[%clk 00:53:53]} {[%emt 00:03:44]} 25. Na4 {[%clk 00:22:14]} {[%emt 00:02:55]}
Rb8 {[%clk 00:46:21]} {[%emt 00:08:02]} 26. Nac5 {[%clk 00:20:25]} {[%emt
00:02:19]} Bxg5 {[%clk 00:45:52]} {[%emt 00:00:59]} 27. Nxb7 {[%clk 00:19:20]}
{[%emt 00:01:36]} Rxb7 {[%clk 00:36:29]} {[%emt 00:09:52]} 28. Nc5 {[%clk
00:18:26]} {[%emt 00:01:24]} Bxc1 {[%clk 00:24:54]} {[%emt 00:12:04]} 29. Nxb7
{[%clk 00:17:39]} {[%emt 00:01:18]} Qe7 {[%clk 00:24:41]} {[%emt 00:00:42]} 30.
Nd6+ {[%clk 00:17:55]} {[%emt 00:00:14]} Nxd6 {[%clk 00:24:15]} {[%emt
00:00:58]} 31. exd6 {[%clk 00:18:17]} {[%emt 00:00:07]} Qxd6 {[%clk 00:20:39]}
{[%emt 00:04:05]} 32. Rfxc1 {[%clk 00:17:29]} {[%emt 00:01:17]} Kd7 {[%clk
00:16:55]} {[%emt 00:04:15]} 33. Qf1 {[%clk 00:15:46]} {[%emt 00:02:12]} Nf4
{[%clk 00:08:58]} {[%emt 00:08:29]} 34. Rc2 {[%clk 00:13:29]} {[%emt 00:02:47]}
Rg8 {[%clk 00:08:33]} {[%emt 00:00:55]} 35. Kh1 {[%clk 00:08:56]} {[%emt
00:05:03]} Nh5 {[%clk 00:06:56]} {[%emt 00:02:06]} 36. Qxa6 {[%clk 00:07:45]}
{[%emt 00:01:41]} Qf4 {[%clk 00:04:18]} {[%emt 00:03:06]} 37. Qd3 {[%clk
00:03:16]} {[%emt 00:05:01]} Ng3+ {[%clk 00:03:20]} {[%emt 00:01:28]} 38. Kg1
{[%clk 00:03:26]} {[%emt 00:00:21]} Ne4 {[%clk 00:03:09]} {[%emt 00:00:41]} 39.
a6 {[%clk 00:02:15]} {[%emt 00:01:42]} Rg3 {[%clk 00:02:53]} {[%emt 00:00:45]}
40. Rf1 {[%clk 00:00:47]} {[%emt 00:01:59]} Qb8 {[%clk 00:02:53]} {[%emt
00:00:30]} 41. a7 {[%clk 00:00:32]} {[%emt 00:00:46]} Qb7 {[%clk 00:02:02]}
{[%emt 00:01:20]} 42. Qxg3 {[%clk 00:00:36]} {[%emt 00:00:26]} Nxg3 {[%clk
00:02:00]} {[%emt 00:00:32]} 43. Ra1 {[%clk 00:00:32]} {[%emt 00:00:35]} Qa8
{[%clk 00:01:59]} {[%emt 00:00:30]} 44. b7 {[%clk 00:00:54]} {[%emt 00:00:08]}
Qh8 {[%clk 00:01:00]} {[%emt 00:01:29]} 45. Rd2 {[%clk 00:00:37]} {[%emt
00:00:47]} Ne2+ {[%clk 00:00:51]} {[%emt 00:00:38]} 46. Kh2 {[%clk 00:00:36]}
{[%emt 00:00:32]} Nxd4 {[%clk 00:01:12]} {[%emt 00:00:09]} 47. b8=Q {[%clk
00:00:47]} {[%emt 00:00:19]} 1-0